Cogmind - Beta 16 @@@ ROGUE MODE // 2025.11.16 @ 11:44:12 Player: ChromeKnight Result: Destroyed self with Improved Grenade Launcher Performance ------------- Evolutions (1) 500 Regions Visited (6) 1200 Robots Destroyed (82) 410 Value Destroyed (2491) 2491 Prototype IDs (8) 160 Alien Tech Used (0) 0 Bonus (1341) 1341 TOTAL SCORE: 6102 Bonus ------- High Alert Combat Kills 335 Follower Combat Kills 531 Entered Garrisons 200 Used RIF Installer 500 Friendly Fire -225 Cogmind --------- Core Integrity 0/400 Matter 198/300 Energy 100/100 System Corruption 4% Temperature Cool (0) Movement Flying (98) Location -9/Recycling Parts ------- > --- POWER (1) -------- (None) > --- PROPULSION (4) --- Flying VTOL Exoskeleton > --- UTILITY (2) ------ Scrap Engine > --- WEAPON (2) ------- Improved Grenade Launcher Plasma Cutter > --- INVENTORY (5) ---- Small Storage Unit Experimental Sensor Array Advanced Targeting Computer Relay Coupler [NC] (28) Relay Coupler [NC] (26) Peak State ------------ > --- POWER ------------ Cold Fusion Reactor > --- PROPULSION ------- Light Treads Light Treads VTOL Module VTOL Module > --- UTILITY ---------- Scrap Engine > --- WEAPON ----------- Improved EM Shotgun Bore Cannon > --- INVENTORY -------- VTOL Module Advanced Targeting Computer Relay Coupler [NC] Relay Coupler [Sentry] [Rating: 39] Favorites ----------- Power Heavy Ion Engine Engine Heavy Ion Engine Reactor Cold Fusion Reactor Propulsion Light Treads Treads Light Treads Leg Improved Aluminum Leg Wheel Wheel Flight Unit VTOL Module Utility Huge Storage Unit Device Heat Sink Storage Huge Storage Unit Processor Advanced Targeting Computer Weapon Improved EM Shotgun Energy Gun Improved EM Shotgun Energy Cannon Advanced Beam Cannon Ballistic Gun Improved Assault Rifle Ballistic Cannon Bore Cannon Launcher Improved Grenade Launcher Special Weapon Plasma Cutter Build | -11 -10 -10 -9 -9 -9 -9 ------- Run | Yrd Mat Min Mat Sto Gar Rec Slots Evolved 2 | . . . 2 . . . Power . | . . . . . . . Propulsion 2 | . . . 2 . . . Utility . | . . . . . . . Weapon . | . . . . . . . Parts Attached 52 | 6 4 2 13 14 4 9 Power 4 | 1 . . 1 2 . . Engine 3 | 1 . . 1 1 . . Core . | . . . . . . . Reactor 1 | . . . . 1 . . Propulsion 21 | 2 1 . 3 7 1 7 Treads 13 | 2 . . 1 5 1 4 Leg 2 | . . . 1 1 . . Wheel 3 | . 1 . 1 1 . . Hover . | . . . . . . . Flight 3 | . . . . . . 3 Utility 9 | 1 1 2 4 . . 1 Device 3 | . . 2 . . . 1 Storage 2 | 1 1 . . . . . Processor 4 | . . . 4 . . . Hackware . | . . . . . . . Protection . | . . . . . . . Artifact . | . . . . . . . Weapon 18 | 2 2 . 5 5 3 1 Energy Gun 10 | 2 2 . 2 2 2 . Energy Cannon 1 | . . . . 1 . . Ballistic Gun 2 | . . . 2 . . . Ballistic Cannon 1 | . . . . . 1 . Launcher 3 | . . . 1 1 . 1 Special Weapon 1 | . . . . 1 . . Impact Weapon . | . . . . . . . Slashing Weapon . | . . . . . . . Piercing Weapon . | . . . . . . . Special Melee Weapon . | . . . . . . . Unidentified Prototypes 7 | . . 1 2 3 . 1 Parts Lost 15 | . . . 4 3 3 5 Power 1 | . . . . . 1 . Propulsion 9 | . . . 1 3 1 4 Utility . | . . . . . . . Weapon 5 | . . . 3 . 1 1 Highest Loss Streak 3 | . . . 2 2 2 3 To Critical Strikes 1 | . . . . . 1 . Average Backups 18 | . 4 8 15 23 24 22 Power . | . . . . 1 . . Propulsion 6 | . . 2 1 9 9 7 Utility 8 | . 1 2 7 7 10 11 Weapon 3 | . 2 4 4 4 2 1 Tool/Special . | . . . . . . . Unused Backups 29 | . . . 2 4 6 17 Power . | . . . . . . . Propulsion 7 | . . . 1 . . 6 Utility 15 | . . . . . 4 11 Weapon 7 | . . . 1 4 2 . Tool/Special . | . . . . . . . Average Slot Usage (%) 95 | . 84 96 99 97 97 92 Engine 7 | . 14 14 11 11 8 . Reactor 3 | . . . . . 1 9 Treads 31 | . 28 14 22 32 43 37 Wheel 6 | . . 14 21 5 . . Device 2 | . . 10 1 . . 1 Storage 11 | . 14 14 11 11 11 9 Processor 8 | . . . 9 11 11 9 Energy Gun 19 | . 27 28 20 6 20 18 Ballistic Gun 1 | . . . 1 11 . . Peak Build Rating 39 | 6 10 18 24 25 26 39 Average Rating 21 | 3 8 10 18 22 23 27 On Entrance 14 | . 6 9 11 24 23 26 Avg Prop Armor Cover (%) 14 | . . 11 17 21 . 4 Naked Turns . | . . . . . . . Heaviest Build 104 | 11 89 90 95 98 98 104 Greatest Support 83 | 40 40 10 20 80 80 83 Greatest Overweight (x) 9 | . 8 8 9 9 1 2 Average Overweight (x) 3 | . . 8 4 4 1 . Largest Inventory Capacity 25 | 8 25 25 25 25 25 25 Average Capacity 23 | 6 8 25 25 25 25 22 Most Carried 25 | . 8 9 24 25 25 25 Average Carried 19 | . 4 8 15 23 24 22 Final Capacity 25 | 8 25 25 25 25 25 5 Final Carried 25 | . 8 9 24 25 25 5 Scrap Engine Consumption 16 | . . . . . . 16 Constructs Created 1 | . . . . . . 1 Constructs Modified 1 | . . . . . . 1 Class Distribution -------------------- 66% | Mutant 31% | Scavenger-Mutant Dominant Class ---------------- Mutant | -10/Materials Mutant | -10/Mines Mutant | -9/Materials Scavenger-Mutant | -9/Storage Scavenger-Mutant | -9/Garrison Mutant | -9/Recycling Resources | -11 -10 -10 -9 -9 -9 -9 ----------- Run | Yrd Mat Min Mat Sto Gar Rec Matter Collected 1289 | 204 65 51 185 542 91 151 Remotely . | . . . . . . . Salvage Created 3171 | . 94 252 705 931 718 471 Parts 182 | . 6 9 49 52 40 26 Haulers Intercepted 2 | . . . 2 . . . Recyclers Shooed 5 | . . . 2 . . 3 Parts Field Recycled . | . . . . . . . Retrieved Matter . | . . . . . . . Parts Self-Destructed . | . . . . . . . Prevented . | . . . . . . . Parts Restored . | . . . . . . . Kills | -11 -10 -10 -9 -9 -9 -9 ------- Run | Yrd Mat Min Mat Sto Gar Rec Combat Hostiles Destroyed 63 | . 3 2 15 22 15 6 Guns 37 | . 2 2 8 11 11 3 Cannons 3 | . . . . . 1 2 AOE 21 | . 1 . 6 11 3 . Classes Destroyed 17 | . 3 2 5 2 3 2 Worker 3 | . . 2 1 . . . Builder 1 | . . . 1 . . . Tunneler 1 | . . . 1 . . . Hauler 2 | . . . 2 . . . Recycler 7 | . . 2 1 4 . . Operator 1 | . . . 1 . . . Watcher 3 | . 1 . 1 1 . . Swarmer 14 | . 2 . 7 4 1 . Grunt 26 | . 1 2 3 12 8 . Brawler 2 | . . . . 1 1 . Duelist 1 | . . . . . 1 . Protector 1 | . . . . 1 . . Sentry 15 | . . . 5 4 2 4 Programmer 1 | . . . . . 1 . Scientist 1 | . . . . . . 1 Scrapper 3 | . . . . . . 3 Guerrilla 1 | . . . . . 1 . Best Kill Streak 10 | . 2 3 7 10 5 2 Combat Bots Only 8 | . 2 2 6 8 5 2 Max Kills in Single Turn 5 | . 1 2 4 5 2 1 Gunslinging . | . . . . . . . Exploded 4 | . 1 . 3 4 2 . Melee . | . . . . . . . Uniques/NPCs Destroyed . | . . . . . . . Combat | -11 -10 -10 -9 -9 -9 -9 -------- Run | Yrd Mat Min Mat Sto Gar Rec Hostile Shots Fired 269 | . 13 7 64 64 75 46 Missed 82 | . 3 2 19 23 23 12 Hits 187 | . 10 5 45 41 52 34 Projectile 187 | . 10 5 45 41 52 34 Critical Strikes 17 | . . . 1 3 6 7 Damage Taken 2856 | . 77 123 610 520 802 724 Core 459 | . 34 11 45 25 148 196 Absorbed by Shields . | . . . . . . . Regen/Repaired (Parts) 11 | . . . . 11 . . Core Remaining (%) 91 | 100 . 82 . . . . Volleys Fired 164 | . 7 9 47 36 38 27 Largest 2 | . 2 2 2 2 2 2 Hottest 93 | . 90 90 90 90 90 93 Shots Fired 298 | . 14 18 81 66 72 47 Gun 269 | . 14 18 77 58 69 33 Cannon 16 | . . . . . 3 13 Launcher 12 | . . . 4 7 . 1 Special 1 | . . . . 1 . . Kinetic 83 | . . . 15 52 3 13 Thermal 1 | . . . . 1 . . Explosive 12 | . . . 4 7 . 1 Electromagnetic 202 | . 14 18 62 6 69 33 Robot Hit Streak 20 | . 2 6 15 13 14 20 Robot Miss Streak 4 | . 4 3 4 2 3 3 Penetration Max 1 | . . . . . . 1 Secondary Targets 6 | . . 1 1 2 2 . Max Gunslinging Chain 1 | . . 1 1 1 1 . Shots Hit Robots 215 | . 6 15 62 40 55 37 Core Hits 152 | . 5 13 40 41 37 16 Critical Kills 3 | . . . . . 1 2 Critical Parts Destroyed 4 | . . . 1 . 1 2 Critical Strikes 7 | . . . 1 . 2 4 Destroy 7 | . . . 1 . 2 4 Melee Attacks . | . . . . . . . Impact . | . . . . . . . Slashing . | . . . . . . . Piercing . | . . . . . . . Sneak Attacks . | . . . . . . . Combat Hostiles . | . . . . . . . Follow-up Attacks . | . . . . . . . Damage Inflicted 5405 | . 105 333 1444 1748 1007 768 Guns 2951 | . 75 199 894 594 764 425 Cannons 231 | . . . . . 51 180 Explosions 2217 | . 30 134 544 1154 192 163 Melee . | . . . . . . . Ramming 6 | . . . 6 . . . Kinetic 983 | . . . 196 556 51 180 Thermal 618 | . 30 134 131 33 192 98 Explosive 1599 | . . . 413 1121 . 65 Electromagnetic 2199 | . 75 199 698 38 764 425 Impact . | . . . . . . . Slashing . | . . . . . . . Piercing . | . . . . . . . Highest Corruption 4 | . . . . . 4 4 Average Corruption 3 | . . . . . 3 4 Corruption Purged . | . . . . . . . Corruption Blocked . | . . . . . . . Effects 43 | . . . . . 6 37 Message Errors 14 | . . . . . 3 11 Matter Fused 6 | . . . . . . 6 Heat Flow Errors 4 | . . . . . . 4 Energy Discharges 8 | . . . . . 1 7 Parts Rejected 1 | . . . . . . 1 Data Loss (minor) 6 | . . . . . 2 4 Data Loss (major) 2 | . . . . . . 2 Misfires 1 | . . . . . . 1 Weapon Failures 1 | . . . . . . 1 Overload Shots . | . . . . . . . Overflow Damage 55 | . . . 11 16 12 16 Projectiles . | . . . . . . . Explosions 55 | . . . 11 16 12 16 Melee . | . . . . . . . Knockbacks 2 | . . . . . 1 1 Impact . | . . . . . . . Kinetic 2 | . . . . . 1 1 Secondary . | . . . . . . . Self-Inflicted Damage 345 | . . 57 53 64 47 124 Shots 11 | . . 2 2 2 2 3 Rammed 1 | . . . 1 . . . Targets Rammed 1 | . . . 1 . . . Kicked . | . . . . . . . Crushed . | . . . . . . . Highest Temperature 322 | . 120 150 123 72 180 322 Average Temperature 57 | . 46 61 38 19 54 94 Received Heat Transfer 1036 | . 12 36 147 189 219 433 Effects 1 | . . . . . . 1 Energy Bleed 1 | . . . . . . 1 Siege Activations . | . . . . . . . Martial Activations . | . . . . . . . Shielding Activations . | . . . . . . . Robots Disrupted 1 | . 1 . . . . . Combat Hostiles 1 | . 1 . . . . . Robots Corrupted 2 | . . . 1 . . 1 Combat Hostiles 2 | . . . 1 . . 1 Parts Fried 11 | . . 1 4 . 2 4 Impact Corruptions . | . . . . . . . Robots Melted . | . . . . . . . Combat Hostiles . | . . . . . . . Parts Melted 1 | . . . . 1 . . Heat Transferred 762 | . 50 200 150 50 225 87 Parts Sabotaged . | . . . . . . . Parts Stolen . | . . . . . . . Parts Stripped . | . . . . . . . Power Chain Reactions 13 | . 1 2 3 1 4 2 Alert | -11 -10 -10 -9 -9 -9 -9 ------- Run | Yrd Mat Min Mat Sto Gar Rec Maximum Alert Level 4 | . . . 1 2 4 2 Low Security (%) 38 | 100 100 100 98 28 . . Level 1 19 | . . . 1 24 6 45 Level 2 28 | . . . . 46 21 54 Level 3 13 | . . . . . 69 . Level 4 . | . . . . . 2 . Level 5 . | . . . . . . . High Security . | . . . . . . . Max Security . | . . . . . . . Peak Influence 1184 | . 70 50 214 534 1184 538 Initial 532 | . . 22 . 42 315 532 Average 351 | . 25 5 107 324 822 404 Influence Increases 2982 | . 107 78 587 891 919 400 Destroy 0b10 Robot/C 1580 | . 60 40 340 540 520 80 Destroy 0b10 Robot/NC 100 | . 5 20 40 35 . . Destroy Leader 290 | . 12 10 116 132 20 . Allied During Kill 105 | . . . 37 45 23 . Successful Hack 76 | . . . 8 11 49 8 Select Force Hacks 270 | . . . . . . 270 Disable Machine 90 | . . . 15 60 . 15 Anti-Garrison Action 200 | . . . . . 200 . Destroy Structure 151 | . . 8 31 53 32 27 Lose Combat Pursuer 120 | . 30 . . 15 75 . Influence Decreases 2704 | . 50 135 487 506 220 1306 Entered New Map 915 | . . 35 . 58 170 652 Time Decay 1530 | . 50 100 378 398 . 604 Lost Part 140 | . . . 30 30 30 50 Lost Ally 119 | . . . 79 20 20 . Squads Dispatched 7 | . . . 2 5 . . Investigation . | . . . . . . . Extermination . | . . . . . . . Reinforcement 2 | . . . 2 . . . Assault 2 | . . . . 2 . . Garrison 3 | . . . . 3 . . Intercept . | . . . . . . . Searches Triggered . | . . . . . . . Construction Impeded . | . . . . . . . Haulers Reinforced . | . . . . . . . Active Scanning Responses . | . . . . . . . Cargo Convoy Interrupts . | . . . . . . . Stealth | -11 -10 -10 -9 -9 -9 -9 --------- Run | Yrd Mat Min Mat Sto Gar Rec Distress Signals 8 | . 1 . 5 2 . . Communications Jammed . | . . . . . . . Distress Signals . | . . . . . . . Times Spotted 100 | . 7 2 24 31 30 6 Peak Tracking Total 9 | . 3 2 8 9 5 4 Tactical Retreats 7 | . 1 . . 1 5 . Traps | -11 -10 -10 -9 -9 -9 -9 ------- Run | Yrd Mat Min Mat Sto Gar Rec Traps Triggered 5 | . . . . 2 3 . Indirectly . | . . . . . . . Trap Hack Attempts . | . . . . . . . Triggered . | . . . . . . . Disarmed . | . . . . . . . Reprogrammed . | . . . . . . . Reused . | . . . . . . . Traps Extracted . | . . . . . . . Installed . | . . . . . . . Triggered . | . . . . . . . Machines | -11 -10 -10 -9 -9 -9 -9 ---------- Run | Yrd Mat Min Mat Sto Gar Rec Machines Disabled 8 | . . . 1 4 2 1 Max in Single Turn 2 | . . . 1 2 1 1 Garrison Relay 3 | . . . . . 3 . Machines Repaired . | . . . . . . . Machines Dismantled 1 | . . . . 1 . . Machines Sabotaged . | . . . . . . . Overloaded Fab Kills . | . . . . . . . Hacking | -11 -10 -10 -9 -9 -9 -9 --------- Run | Yrd Mat Min Mat Sto Gar Rec Machines Accessed 29 | . . . 2 6 5 16 Terminals 17 | . . . 2 4 5 6 Fabricators . | . . . . . . . Repair Stations 1 | . . . . 1 . . Recycling Units 9 | . . . . . . 9 Scanalyzers . | . . . . . . . Garrison Access 1 | . . . . 1 . . Total Hacks 46 | . . . 5 10 10 21 Successful 27 | . . . 1 6 4 16 Failed 19 | . . . 4 4 6 5 Catastrophic 3 | . . . 1 1 1 . Database Lockouts . | . . . . . . . Manual 26 | . . . 5 2 . 19 Terminals 30 | . . . 5 6 10 9 Fabricators . | . . . . . . . Repair Stations 2 | . . . . 2 . . Recycling Units 10 | . . . . . . 10 Scanalyzers . | . . . . . . . Garrison Access 2 | . . . . 2 . . Terminal Hacks 10 | . . . 1 3 4 2 Open Door 4 | . . . . 3 1 . Branch Access Points 1 | . . . 1 . . . Emergency Access Points 1 | . . . . . 1 . Garrison Registry 1 | . . . . . 1 . Patrol Navigation 1 | . . . . . 1 . Release Object 2 | . . . . . . 2 Fabricator Hacks . | . . . . . . . Repair Station Hacks 2 | . . . . 2 . . Scan Component 1 | . . . . 1 . . Repair 1 | . . . . 1 . . Recycling Unit Hacks . | . . . . . . . Scanalyzer . | . . . . . . . Garrison Access Hacks 1 | . . . . 1 . . Unlock Access 1 | . . . . 1 . . Unauthorized Hacks 13 | . . . . . . 13 Terminals 4 | . . . . . . 4 Skim 4 | . . . . . . 4 Fabricators . | . . . . . . . Repair Stations . | . . . . . . . Recycling Units 9 | . . . . . . 9 Tunnel 9 | . . . . . . 9 Scanalyzers . | . . . . . . . Garrison Access . | . . . . . . . Data Cores Recovered . | . . . . . . . Used . | . . . . . . . Hacking Detections 15 | . . . 2 5 3 5 Full Trace Events 2 | . . . 1 . 1 . Feedback Events . | . . . . . . . Feedback Blocked . | . . . . . . . Robot Schematics Acquired . | . . . . . . . Robots Built . | . . . . . . . Authchips . | . . . . . . . Time . | . . . . . . . Total Robot Build Rating . | . . . . . . . Part Schematics Acquired . | . . . . . . . Parts Built . | . . . . . . . Authchips . | . . . . . . . Time . | . . . . . . . Total Part Build Rating . | . . . . . . . Part Studies Acquired . | . . . . . . . Parts Repaired 1 | . . . . 1 . . Time 108 | . . . . 108 . . Parts Recycled . | . . . . . . . Recycled Matter . | . . . . . . . Retrieved Matter . | . . . . . . . Retrieved Components . | . . . . . . . Parts Scanalyzed . | . . . . . . . Part Schematics Acquired . | . . . . . . . Parts Damaged . | . . . . . . . Bothacking | -11 -10 -10 -9 -9 -9 -9 ------------ Run | Yrd Mat Min Mat Sto Gar Rec Used RIF Installer 1 | . . . . . 1 . Robots Hacked . | . . . . . . . Non-combat . | . . . . . . . Combat . | . . . . . . . Robot Hacks Applied . | . . . . . . . Relay Couplers Released 11 | . . . . . 11 . Machine Destruction 11 | . . . . . 11 . Fabnet Peak Effective % . | . . . . . . . Robots Rewired 2 | . . . . . 2 . Allies Hacked . | . . . . . . . Hacks Repelled . | . . . . . . . Allies | -11 -10 -10 -9 -9 -9 -9 -------- Run | Yrd Mat Min Mat Sto Gar Rec Total Allies 9 | . . 5 . 2 2 . Largest Group 5 | . . 5 5 2 2 . Highest-Rated Group 78 | . . 78 78 62 78 . Highest-Rated Ally 39 | . . 31 31 31 39 . Total Orders . | . . . . . . . Ally Attacks 91 | . . . 33 19 39 . Total Damage 1232 | . . . 340 293 599 . Kills 21 | . . . 2 7 12 . Allies Corrupted . | . . . . . . . Allies Melted . | . . . . . . . Intel | -11 -10 -10 -9 -9 -9 -9 ------- Run | Yrd Mat Min Mat Sto Gar Rec Active Infowar (turns) 1 | . . 1 . . . . Sensors 1 | . . 1 . . . . Robot Analysis Total . | . . . . . . . Derelict Logs Recovered 2 | . . 2 . . . . Drone Launches . | . . . . . . . Drone Recoveries . | . . . . . . . Exploration | -11 -10 -10 -9 -9 -9 -9 ------------- Run | Yrd Mat Min Mat Sto Gar Rec Turns Passed 6321 | 65 258 920 943 949 1233 1953 Spaces Moved 2483 | 44 139 441 476 269 429 685 Core 13 | 13 . . . . . . Treads 1368 | 31 138 . . 112 429 658 Legs 2 | . . . . . . 2 Wheels 1075 | . 1 441 476 157 . . Hover . | . . . . . . . Flight 25 | . . . . . . 25 Fastest Speed 35 | 50 160 200 140 175 240 35 Average Speed 202 | 127 160 200 142 213 240 232 Slowest Speed 480 | 160 200 200 215 480 240 320 Overloaded Moves . | . . . . . . . Propulsion Burnouts . | . . . . . . . Robots Hopped . | . . . . . . . Potential Cave-ins . | . . . . . . . Cave-ins Triggered . | . . . . . . . Exploration Rate (%) 51 | 4 30 71 44 49 64 97 Regions Visited 6 Branch Regions 3 Pre-discovered Areas 11 | . . 2 . . . 9 Known Exits Taken 2 | . . . 1 1 . . Unknown Exits Taken 3 | 1 1 1 . . . . Scrap Searched 1 | . . 1 . . . . Spaces Dug . | . . . . . . . Terrain Destroyed 155 | . . 8 32 71 13 31 Melee . | . . . . . . . Projectile 4 | . . . . . . 4 AOE 151 | . . 8 32 71 13 27 Terrain Rammed . | . . . . . . . Walls Destroyed . | . . . . . . . Machines Disabled . | . . . . . . . Actions | -11 -10 -10 -9 -9 -9 -9 --------- Run | Yrd Mat Min Mat Sto Gar Rec Total 3460 | 50 161 462 659 558 570 1000 Wait 598 | 1 1 9 85 196 50 256 Move 2476 | 43 138 440 475 268 427 685 Hop . | . . . . . . . Pick Up 62 | . 8 1 24 12 11 6 Fast Attach 30 | 6 2 1 3 11 2 5 Attach 23 | . 1 1 8 4 4 5 Detach 6 | . 1 1 2 1 1 . Swap 20 | . 1 . 7 9 1 2 Drop 47 | . 2 . 7 13 11 14 Fire 164 | . 7 9 47 36 38 27 Melee . | . . . . . . . Ram 1 | . . . 1 . . . Kick . | . . . . . . . Crush . | . . . . . . . Escape Stasis 6 | . . . . . 6 . Rewire 19 | . . . . . 19 . Trap . | . . . . . . . Miscellaneous 8 | . . . . 8 . . Route ------- -11/Scrapyard -10/Materials -10/Mines (discovered 2 exits: *Mat / [*Sub]) -9/Materials (discovered 4 exits: *Mat / *Min x2 / *Sto) -9/Storage (discovered 2 exits: *Mat / Gar) -9/Garrison (discovered 3 exits: *Rec x3) -9/Recycling (discovered 1 exit: [*Fac]) History --------- Turn | Location | Event 8 | -11/Scrapyard | Discovered new exit (range 16) 66 | -11/Scrapyard | Entered Materials 296 | -10/Materials | Discovered new exit (range 11) 313 | -10/Materials | Build established: Mutant 324 | -10/Materials | Entered Mines 325 | -10/Mines | Learned location of Storage (-9) 359 | -10/Mines | Found a damaged Exp. Sensor Array with a note attached 363 | -10/Mines | Found Prototype Device 368 | -10/Mines | Identified Exp. Sensor Array 627 | -10/Mines | Learned Materials emergency access door positions 1003 | -10/Mines | Assisted by bots powering up and referring to "LRC-V3" 1019 | -10/Mines | Learned location of Recycling (-9) 1019 | -10/Mines | Discovered new exit (range 9) 1189 | -10/Mines | Discovered new exit (range 5) 1244 | -10/Mines | Entered Materials 1244 | -9/Materials | Accompanied by 5 allies 1244 | -9/Materials | Evolved 2 slots: Propulsion x2 1249 | -9/Materials | Led the pair of lost Derelicts to an unsafe place 1404 | -9/Materials | Lost 4 allies 1409 | -9/Materials | Discovered new exit (range 8) 1695 | -9/Materials | Discovered new exit (range 8) 1727 | -9/Materials | Identified exit to Materials 1929 | -9/Materials | Identified exit to Mines 1929 | -9/Materials | Identified exit to Storage 2187 | -9/Materials | Entered Storage 2647 | -9/Storage | Met a pair of Derelict thieves 2688 | -9/Storage | Garrison activated, responded to threat 2712 | -9/Storage | Identified exit to Garrison 2713 | -9/Storage | Destroyed 8 combat bots 2754 | -9/Storage | Build established: Scavenger-Mutant 2816 | -9/Storage | Discovered exit to Materials (range 16) 3114 | -9/Storage | Repaired Exp. Sensor Array 3136 | -9/Storage | Entered Garrison 3136 | -9/Garrison | Accompanied by 1 ally 3182 | -9/Garrison | Discovered new exit (range 89) 3182 | -9/Garrison | Discovered new exit (range 68) 3182 | -9/Garrison | Discovered new exit (range 56) 3210 | -9/Garrison | Triggered checkpoint 3297 | -9/Garrison | Garrison Relay disabled 3464 | -9/Garrison | Triggered checkpoint 3476 | -9/Garrison | Triggered checkpoint 3604 | -9/Garrison | Installed Relay Interface Framework 3918 | -9/Garrison | Triggered checkpoint 4044 | -9/Garrison | Garrison Relay disabled 4047 | -9/Garrison | Garrison Relay disabled 4065 | -9/Garrison | Core integrity fell below 50% 4369 | -9/Garrison | Entered Recycling 4749 | -9/Recycling | Build established: Mutant 5400 | -9/Recycling | Discovered new exit (range 16) 5891 | -9/Recycling | Scanned before Scraplab entrance 5909 | -9/Recycling | Angered Scraplab inhabitants 5910 | -9/Recycling | Core integrity fell below 20% 5999 | -9/Recycling | Lost 3 parts (2n1w) 6008 | -9/Recycling | Found Prototype Device 6052 | -9/Recycling | Identified Scrap Engine 6322 | -9/Recycling | Destroyed self with Improved Grenade Launcher Last Messages --------------- 06122_ Acquired Plasma Cutter. 06126_ Acquired Imp. Grenade Launcher. 06130_ R-06 Scavenger collects Adv. Targeting Computer. 06145_ Scrap Engine constructs Titanium-VTOL Exoskeleton. 06145_ Dropped VTOL Module. 06148_ Scrap Engine consumes VTOL Module. 06167_ System corrupted: Energy discharge (-23). 06180_ Scrap Engine modifies Titanium-VTOL Exoskeleton: Support -8, Move Heat -1 Expanded to 2 slots (? T98 S12) Renamed Flying VTOL Exoskeleton. 06298_ System corrupted: Energy discharge (-26). 06322_ System corrupted: FCS attempts to trigger Imp. Grenade Launcher. 06322_ System corrupted: Imp. Grenade Launcher misfires. 06322_ US-0QT(c) destroyed. Map ----- +----------------------------------------------------+ | #?# #???????????????????????? | | #?# ##??????????????????????? | | #?# %#??????????????????????? | | #?# ########????????????????? | | #?# # T #????????????????? | | #?# # #????????????????? | | #?# # #????????????????? | | #?# # #????????????????? | | #?# # #????????????????? | | #?# # """ #????????????????? | | ### # """ #????????????????? | | #"" # """ #????????????????? | | #"Y # #????????????????? | | #"" + """ #????????????????? | | ### # """ #????????????????? | | ### # """ #????????????????? | | ##% # #?######??###????? | | ### ######/#?# #### ###??? | | ### #????# ### ## ;;; #??? | | ??# #????# "#" ###;%;;#??? | | ??# #????# %" ! ! ! !;#??? | | ??# #????####" ! ##";; ;#??? | | ??# #??????# #! ! #### ##?? | | ??# #??????### !#??# % #?? | | ??# #????????######??# #??? | | ??# #?????????????#####@####? | | ### #?????????????#""[%%= "#? | | #?????????????#"&=%!!""#? | | #?????????????#" =!% "#? | | #?????????????#"" X"#? | | #?????????????#"& "#? | | """" #?????????????#" %""#? | | """" ###???????????#"X "#? | | """" ""#???????????#" ###? | | """" T"#???????????# " #??? | | """" ""#???????????# """ ??? | | ###???????????########??? | | #???????????????????????? | | #######???????????????????????? | | #??????????????????????????? | | #??????????????????????????? | | #??????????????????????????? | | #??????????????????????????? | | #??????????????????????????? | | #??????????????????????????? | | #??????????????????????????? | | ] =#??????????????????????????? | | #??????????????????????????? | | ####??????????????????????????? | | ??????????????????????????????? | +----------------------------------------------------+ Best States ------------- Heat Dissipation 38 Energy Generation 17 Energy Capacity 280 Matter Stores 300 Matter Capacity 300 Sight Range 16 Terrain Scan Density 10 Evasion (%) 50 Targeting Accuracy 8 Recoil Reduction 4 Item Schematics ----------------- None Robot Schematics ------------------ None Fabricated ------------ Nothing Repaired ---------- Exp. Sensor Array | 62% | -9/Storage Studied --------- None Alien Tech Used ----------------- None Achievements -------------- None Challenges ------------ None Game ------ Seed ReinforcedJunkWheel Manual? 0 Play Time 00:27:39 Cumulative 551.9 hours Start 2025.11.16 @ 11:13:32 End 2025.11.16 @ 11:44:12 Sessions 1 Manual Loads 0 Difficulty Rogue Special Mode None Game No. 892 Rogue 737 Adventurer 148 Explorer 7 Win Type - Total 26 Types 20/1/4/1/0/0/0/0/0/0 Lore% 79 Gallery% 81 Achievement% 66 Wizard Run 0 Options --------- Layout 1 ASCII 0 Keyboard 0 Movement Numpad Keybinds 0 Fullscreen 2 Font 24/Smallcaps Map View 50x40 Zoom Use 0% Tactical HUD 1 Map Filters NONE Filters NONE Steam 1 RUN: d3bef091-3924-4494-8244-4b9f2fcf9dae